Cogmind - Beta 16 @@@ ROGUE MODE // 2025.11.02 @ 19:45:16 Player: Bish Result: Destroyed by Y-54 Guardian with Gatling Laser Performance ------------- Evolutions (0) 0 Regions Visited (3) 600 Robots Destroyed (13) 65 Value Destroyed (319) 319 Prototype IDs (0) 0 Alien Tech Used (0) 0 Bonus (0) 0 TOTAL SCORE: 984 Bonus ------- None Cogmind --------- Core Integrity 0/250 Matter 293/300 Energy 100/100 System Corruption 0% Temperature Cool (6) Movement Treading (160) Location -7/Recycling Parts ------- > --- POWER (1) -------- (None) > --- PROPULSION (2) --- Light Treads > --- UTILITY (2) ------ Small Storage Unit Targeting Computer > --- WEAPON (2) ------- Bore Cannon > --- INVENTORY (8) ---- Aluminum Leg Improved Heat Sink Sensor Array Signal Interpreter Improved Terrain Scanner Light Armor Plating Scrap Shield Peak State ------------ > --- POWER ------------ (None) > --- PROPULSION ------- Light Treads Light Treads > --- UTILITY ---------- Small Storage Unit Targeting Computer > --- WEAPON ----------- Bore Cannon > --- INVENTORY -------- Aluminum Leg Improved Heat Sink Sensor Array Signal Interpreter Improved Terrain Scanner Light Armor Plating Scrap Shield [Rating: 10] Favorites ----------- Power Light Ion Engine Engine Light Ion Engine Propulsion Aluminum Leg Treads Light Treads Leg Aluminum Leg Utility Small Storage Unit Device Seismic Detector Storage Small Storage Unit Processor Targeting Computer Weapon Light Assault Rifle Energy Gun EM Pulse Gun Ballistic Gun Light Assault Rifle Ballistic Cannon Bore Cannon Special Weapon Flamer Build | -11 -10 -10 -7 ------- Run | Yrd Mat Sub Rec Slots Evolved . | . . . . Power . | . . . . Propulsion . | . . . . Utility . | . . . . Weapon . | . . . . Parts Attached 10 | 1 7 2 . Power 2 | . 2 . . Engine 2 | . 2 . . Core . | . . . . Reactor . | . . . . Propulsion 3 | . 3 . . Treads 2 | . 2 . . Leg 1 | . 1 . . Wheel . | . . . . Hover . | . . . . Flight . | . . . . Utility 2 | 1 1 . . Device 1 | 1 . . . Storage . | . . . . Processor 1 | . 1 . . Hackware . | . . . . Protection . | . . . . Artifact . | . . . . Weapon 3 | . 1 2 . Energy Gun . | . . . . Energy Cannon . | . . . . Ballistic Gun 1 | . 1 . . Ballistic Cannon 1 | . . 1 . Launcher . | . . . . Special Weapon 1 | . . 1 . Impact Weapon . | . . . . Slashing Weapon . | . . . . Piercing Weapon . | . . . . Special Melee Weapon . | . . . . Unidentified Prototypes . | . . . . Parts Lost 8 | . 5 2 1 Power 2 | . 1 1 . Propulsion 2 | . 1 . 1 Utility . | . . . . Weapon 4 | . 3 1 . Highest Loss Streak 2 | . 2 2 1 To Critical Strikes . | . . . . Average Backups 7 | 6 7 7 7 Power . | 1 . . . Propulsion 2 | 4 2 1 1 Utility 4 | . 4 5 6 Weapon . | 1 . . . Tool/Special . | . . . . Unused Backups 20 | 6 7 1 6 Power 2 | 1 1 . . Propulsion 5 | 2 3 . . Utility 8 | 1 1 . 6 Weapon 4 | 2 2 . . Tool/Special 1 | . . 1 . Average Slot Usage (%) 87 | . 93 73 69 Engine 12 | . 14 10 . Treads 7 | . . 28 26 Leg 19 | . 27 . . Device 5 | . 8 . . Storage 14 | . 14 14 14 Processor 8 | . 5 14 14 Energy Gun 2 | . 3 . . Ballistic Gun 13 | . 18 . . Ballistic Cannon 1 | . . 2 14 Peak Build Rating 10 | 8 8 10 10 Average Rating 7 | 6 7 7 9 On Entrance 7 | 6 8 6 10 Avg Prop Armor Cover (%) . | . . . . Naked Turns . | . . . . Heaviest Build 14 | 12 12 14 14 Greatest Support 40 | 20 40 40 40 Greatest Overweight (x) . | . . . . Average Overweight (x) . | . . . . Largest Inventory Capacity 8 | 8 8 8 8 Average Capacity 8 | 8 8 8 8 Most Carried 8 | 8 8 8 8 Average Carried 7 | 6 7 7 8 Final Capacity 8 | 8 8 8 8 Final Carried 8 | 8 7 8 8 Class Distribution -------------------- 100% | Mutant Dominant Class ---------------- Mutant | -10/Materials Mutant | -10/Subcaves Mutant | -7/Recycling Resources | -11 -10 -10 -7 ----------- Run | Yrd Mat Sub Rec Matter Collected 383 | 200 144 39 . Remotely . | . . . . Salvage Created 546 | 163 383 . . Parts 25 | 7 18 . . Haulers Intercepted 1 | . 1 . . Recyclers Shooed . | . . . . Parts Field Recycled . | . . . . Retrieved Matter . | . . . . Parts Self-Destructed 5 | . . 5 . Prevented . | . . . . Parts Restored . | . . . . Kills | -11 -10 -10 -7 ------- Run | Yrd Mat Sub Rec Combat Hostiles Destroyed 7 | . 7 . . Guns 7 | . 7 . . Classes Destroyed 5 | 2 3 . . Tunneler 3 | 3 . . . Hauler 1 | . 1 . . Recycler 1 | 1 . . . Watcher 1 | . 1 . . Grunt 7 | . 7 . . Best Kill Streak 2 | 2 2 . . Combat Bots Only 2 | . 2 . . Max Kills in Single Turn 1 | 1 1 . . Gunslinging . | . . . . Exploded . | . . . . Melee . | . . . . Uniques/NPCs Destroyed . | . . . . Combat | -11 -10 -10 -7 -------- Run | Yrd Mat Sub Rec Hostile Shots Fired 163 | . 90 34 39 Missed 64 | . 29 12 23 Hits 99 | . 61 22 16 Projectile 99 | . 61 22 16 Critical Strikes 1 | . 1 . . Damage Taken 1135 | . 688 324 123 Core 260 | . 177 66 17 Absorbed by Shields . | . . . . Core Remaining (%) 100 | 100 . . . Volleys Fired 97 | 21 70 6 . Largest 2 | 1 2 1 . Hottest 100 | 40 60 100 . Shots Fired 137 | 21 110 6 . Gun 131 | 21 110 . . Cannon 3 | . . 3 . Launcher . | . . . . Special 3 | . . 3 . Kinetic 104 | . 101 3 . Thermal 3 | . . 3 . Explosive . | . . . . Electromagnetic 30 | 21 9 . . Robot Hit Streak 11 | 6 11 4 . Robot Miss Streak 3 | 3 3 1 . Penetration Max . | . . . . Secondary Targets . | . . . . Shots Hit Robots 98 | 11 83 4 . Core Hits 32 | 5 27 . . Critical Kills . | . . . . Critical Parts Destroyed 1 | . . 1 . Critical Strikes 2 | 1 . 1 . Destroy 1 | . . 1 . Corrupt 1 | 1 . . . Melee Attacks . | . . . . Impact . | . . . . Slashing . | . . . . Piercing . | . . . . Sneak Attacks . | . . . . Combat Hostiles . | . . . . Follow-up Attacks . | . . . . Damage Inflicted 898 | 149 732 17 . Guns 874 | 149 725 . . Cannons 17 | . . 17 . Explosions . | . . . . Melee . | . . . . Ramming 7 | . 7 . . Kinetic 640 | . 623 17 . Thermal . | . . . . Explosive . | . . . . Electromagnetic 251 | 149 102 . . Impact . | . . . . Slashing . | . . . . Piercing . | . . . . Highest Corruption . | . . . . Average Corruption . | . . . . Corruption Purged . | . . . . Corruption Blocked . | . . . . Overload Shots . | . . . . Overflow Damage . | . . . . Projectiles . | . . . . Explosions . | . . . . Melee . | . . . . Knockbacks 1 | . . 1 . Impact . | . . . . Kinetic 1 | . . 1 . Secondary . | . . . . Self-Inflicted Damage . | . . . . Shots . | . . . . Rammed . | . . . . Targets Rammed 1 | . 1 . . Kicked 1 | . 1 . . Crushed . | . . . . Highest Temperature 76 | . 76 . . Average Temperature 26 | . 26 . . Received Heat Transfer 492 | . 312 144 36 Siege Activations . | . . . . Martial Activations . | . . . . Shielding Activations . | . . . . Robots Disrupted . | . . . . Combat Hostiles . | . . . . Robots Corrupted . | . . . . Combat Hostiles . | . . . . Parts Fried 1 | 1 . . . Impact Corruptions . | . . . . Robots Melted . | . . . . Combat Hostiles . | . . . . Parts Melted . | . . . . Heat Transferred . | . . . . Parts Sabotaged . | . . . . Parts Stolen . | . . . . Parts Stripped . | . . . . Power Chain Reactions . | . . . . Alert | -11 -10 -10 -7 ------- Run | Yrd Mat Sub Rec Maximum Alert Level . | . . . . Low Security (%) 100 | 100 100 . 100 Level 1 . | . . . . Level 2 . | . . . . Level 3 . | . . . . Level 4 . | . . . . Level 5 . | . . . . High Security . | . . . . Max Security . | . . . . Peak Influence 95 | 5 95 . . Initial . | . . . . Average 20 | 2 25 . . Influence Increases 317 | 20 252 45 . Destroy 0b10 Robot/C 140 | . 140 . . Destroy 0b10 Robot/NC 30 | 20 10 . . Destroy Leader 34 | . 34 . . Successful Hack 8 | . 8 . . Disable Machine 15 | . 15 . . Lose Combat Pursuer 90 | . 45 45 . Influence Decreases 317 | 20 252 45 . Time Decay 290 | 20 225 45 . Lost Part 27 | . 27 . . Squads Dispatched 1 | . 1 . . Investigation . | . . . . Extermination . | . . . . Reinforcement 1 | . 1 . . Assault . | . . . . Garrison . | . . . . Intercept . | . . . . Searches Triggered . | . . . . Construction Impeded . | . . . . Haulers Reinforced . | . . . . Active Scanning Responses . | . . . . Cargo Convoy Interrupts . | . . . . Stealth | -11 -10 -10 -7 --------- Run | Yrd Mat Sub Rec Distress Signals 1 | . 1 . . Communications Jammed . | . . . . Distress Signals . | . . . . Times Spotted 24 | . 13 9 2 Peak Tracking Total 6 | . 4 6 2 Tactical Retreats 3 | . 2 1 . Traps | -11 -10 -10 -7 ------- Run | Yrd Mat Sub Rec Traps Triggered . | . . . . Indirectly . | . . . . Trap Hack Attempts . | . . . . Triggered . | . . . . Disarmed . | . . . . Reprogrammed . | . . . . Reused . | . . . . Traps Extracted . | . . . . Installed . | . . . . Triggered . | . . . . Machines | -11 -10 -10 -7 ---------- Run | Yrd Mat Sub Rec Machines Disabled 1 | . 1 . . Max in Single Turn 1 | . 1 . . Machines Repaired . | . . . . Machines Dismantled . | . . . . Machines Sabotaged . | . . . . Overloaded Fab Kills . | . . . . Hacking | -11 -10 -10 -7 --------- Run | Yrd Mat Sub Rec Machines Accessed 3 | . 3 . . Terminals 2 | . 2 . . Fabricators . | . . . . Repair Stations . | . . . . Recycling Units 1 | . 1 . . Scanalyzers . | . . . . Garrison Access . | . . . . Total Hacks 6 | . 6 . . Successful 1 | . 1 . . Failed 5 | . 5 . . Catastrophic 3 | . 3 . . Database Lockouts . | . . . . Manual 5 | . 5 . . Terminals 5 | . 5 . . Fabricators . | . . . . Repair Stations . | . . . . Recycling Units 1 | . 1 . . Scanalyzers . | . . . . Garrison Access . | . . . . Terminal Hacks 1 | . 1 . . Branch Access Points 1 | . 1 . . Fabricator Hacks . | . . . . Repair Station Hacks . | . . . . Recycling Unit Hacks . | . . . . Scanalyzer . | . . . . Garrison Access Hacks . | . . . . Unauthorized Hacks . | . . . . Terminals . | . . . . Fabricators . | . . . . Repair Stations . | . . . . Recycling Units . | . . . . Scanalyzers . | . . . . Garrison Access . | . . . . Data Cores Recovered . | . . . . Used . | . . . . Hacking Detections 3 | . 3 . . Full Trace Events . | . . . . Feedback Events . | . . . . Feedback Blocked . | . . . . Robot Schematics Acquired . | . . . . Robots Built . | . . . . Authchips . | . . . . Time . | . . . . Total Robot Build Rating . | . . . . Part Schematics Acquired . | . . . . Parts Built . | . . . . Authchips . | . . . . Time . | . . . . Total Part Build Rating . | . . . . Part Studies Acquired . | . . . . Parts Repaired . | . . . . Time . | . . . . Parts Recycled . | . . . . Recycled Matter . | . . . . Retrieved Matter . | . . . . Retrieved Components . | . . . . Parts Scanalyzed . | . . . . Part Schematics Acquired . | . . . . Parts Damaged . | . . . . Bothacking | -11 -10 -10 -7 ------------ Run | Yrd Mat Sub Rec Used RIF Installer . | . . . . Robots Hacked . | . . . . Non-combat . | . . . . Combat . | . . . . Robot Hacks Applied . | . . . . Relay Couplers Released . | . . . . Fabnet Peak Effective % . | . . . . Robots Rewired . | . . . . Allies Hacked . | . . . . Hacks Repelled . | . . . . Allies | -11 -10 -10 -7 -------- Run | Yrd Mat Sub Rec Total Allies . | . . . . Largest Group . | . . . . Highest-Rated Group . | . . . . Highest-Rated Ally . | . . . . Total Orders . | . . . . Ally Attacks . | . . . . Total Damage . | . . . . Kills . | . . . . Allies Corrupted . | . . . . Allies Melted . | . . . . Intel | -11 -10 -10 -7 ------- Run | Yrd Mat Sub Rec Active Infowar (turns) 414 | 16 398 . . Seismic 414 | 16 398 . . Robot Analysis Total . | . . . . Derelict Logs Recovered 1 | . . 1 . Drone Launches . | . . . . Drone Recoveries . | . . . . Exploration | -11 -10 -10 -7 ------------- Run | Yrd Mat Sub Rec Turns Passed 1061 | 116 691 182 72 Spaces Moved 613 | 59 409 102 43 Core . | . . . . Treads 149 | . 4 102 43 Legs 464 | 59 405 . . Wheels . | . . . . Hover . | . . . . Flight . | . . . . Fastest Speed 120 | 120 120 160 160 Average Speed 129 | 120 120 160 160 Slowest Speed 160 | 120 160 160 160 Overloaded Moves . | . . . . Propulsion Burnouts . | . . . . Robots Hopped . | . . . . Potential Cave-ins . | . . . . Cave-ins Triggered . | . . . . Exploration Rate (%) 21 | 3 59 6 17 Regions Visited 3 Branch Regions 2 Pre-discovered Areas . | . . . . Known Exits Taken . | . . . . Unknown Exits Taken 3 | 1 1 1 . Scrap Searched . | . . . . Spaces Dug . | . . . . Terrain Destroyed . | . . . . Melee . | . . . . Projectile . | . . . . AOE . | . . . . Terrain Rammed . | . . . . Walls Destroyed . | . . . . Machines Disabled . | . . . . Actions | -11 -10 -10 -7 --------- Run | Yrd Mat Sub Rec Total 760 | 82 521 111 46 Wait 21 | . 21 . . Move 610 | 58 408 101 43 Hop . | . . . . Pick Up 10 | 2 7 1 . Fast Attach 3 | 1 . 2 . Attach 3 | . 3 . . Detach . | . . . . Swap 4 | . 4 . . Drop 8 | . 7 1 . Fire 97 | 21 70 6 . Melee . | . . . . Ram . | . . . . Kick 1 | . 1 . . Crush . | . . . . Escape Stasis . | . . . . Rewire 3 | . . . 3 Trap . | . . . . Miscellaneous . | . . . . Route ------- -11/Scrapyard -10/Materials (discovered 4 exits: [*Mat] / *Min x2 / [*Sub]) -10/Subcaves -7/Recycling History --------- Turn | Location | Event 11 | -11/Scrapyard | Discovered new exit (range 3) 117 | -11/Scrapyard | Entered Materials 330 | -10/Materials | Build established: Mutant 345 | -10/Materials | Discovered new exit (range 4) 356 | -10/Materials | Discovered new exit (range 16) 562 | -10/Materials | Identified exit to Mines 652 | -10/Materials | Discovered new exit (range 3) 775 | -10/Materials | Core integrity fell below 50% 808 | -10/Materials | Entered Subcaves 808 | -10/Subcaves | Learned Materials emergency access door positions 808 | -10/Subcaves | Discovered new exit (range 12) 809 | -10/Subcaves | Approached by a straggling Scientist 811 | -10/Subcaves | Shifting Twisted Machinery released Flamer 953 | -10/Subcaves | Core integrity fell below 20% 990 | -10/Subcaves | Entered Recycling 1062 | -7/Recycling | Destroyed by Y-54 Guardian with Gatling Laser Last Messages --------------- 00956_ Acquired Bore Cannon. 00960_ O2-ZVE(R) suffers critical hit (Destroy). 00960_ Destroyed Sub. Monowheel. 00960_ O2-ZVE(R) knocked back. 00968_ Subatomizers dissect the Targeting Computer. 00983_ Acquired 27 matter. LOCATION=UNKNOWN GOAL=ESCAPE 01045_ Attempting to rewire Y-54 Guardian. 01045_ Y-54 Guardian is dormant, system inaccessible. 01046_ Attempting to rewire Y-54 Guardian. 01046_ Y-54 Guardian is dormant, system inaccessible. 01047_ Attempting to rewire Y-54 Guardian. 01047_ Y-54 Guardian is dormant, system inaccessible. 01052_ Y-54 Guardian springs to life. 01058_ Lgt. Treads destroyed. Map ----- +----------------------------------------------------+ | | | | | ?????????????????????????????????????????????????? | | ?????????????????????????????????????????????????? | | ?????????????????????????????????????????????????? | | ?????????????????????????????????????????????????? | | ?????????????????????????????????????????????????? | | ?????????????????????????????????????????????????? | | ?????????????????????????????????????????????????? | | ?????????????????????????????????????????????????? | | ?????????????????????????????????????????????????? | | ?????????????????????????????????????????????????? | | ?????????????????????????????????????????????????? | | ?????????????????????????????????????????????????? | | ?????????????????????????????????????????????????? | | ??????????????????????#####??????????????????????? | | ????????????????#+###?#!!!#??????????????????????? | | ????????????????# #Y###!! ########??"????????????? | | ????????????????# ##"Y"#??????????? | | #???#####???????# ???????????? | | #???# ! #?????### ??????????? | | #####! !####### ??????????? | | ?????????? | | ?????????? | | ?????????? | | +############## #####@##### #??????????????? | | ????????????### ###??# ?????????????????????? | | " ??????????????###????# #????????????????????? | | " ????????????????????# #????????????????????? | | " ????????????????????# r#????????????????????? | | ???????????????????# +????????????????????? | | " ???????????????????# #????????????????????? | | " ??????????????????r #????????????????????? | | ? ??????????????????# #????????????????????? | | ? ?????????????????# #????????????????????? | | ?#####?????????????????# #????????????????????? | | ???????????????????????# #????????????????????? | | ???????????????????????# #????????????????????? | | ???????????????????????? #????????????????????? | | ????????????????????????#####????????????????????? | | ?????????????????????????????????????????????????? | | ?????????????????????????????????????????????????? | | ?????????????????????????????????????????????????? | | ?????????????????????????????????????????????????? | | ?????????????????????????????????????????????????? | | ?????????????????????????????????????????????????? | | ?????????????????????????????????????????????????? | | ?????????????????????????????????????????????????? | | ?????????????????????????????????????????????????? | | ?????????????????????????????????????????????????? | +----------------------------------------------------+ Best States ------------- Heat Dissipation 25 Energy Generation 10 Energy Capacity 250 Matter Stores 300 Matter Capacity 300 Sight Range 16 Terrain Scan Density 10 Evasion (%) 55 Targeting Accuracy 5 Recoil Reduction 2 Item Schematics ----------------- None Robot Schematics ------------------ None Fabricated ------------ Nothing Repaired ---------- Nothing Studied --------- None Alien Tech Used ----------------- None Achievements -------------- None Challenges ------------ None Game ------ Seed AlertMissileEdition Manual? 0 Play Time 00:12:02 Cumulative 70.1 hours Start 2025.11.02 @ 19:00:05 End 2025.11.02 @ 19:45:16 Sessions 3 Manual Loads 0 Difficulty Rogue Special Mode None Game No. 40 Rogue 40 Adventurer 0 Explorer 0 Win Type - Total 2 Types 2/0/0/0/0/0/0/0/0/0 Lore% 30 Gallery% 47 Achievement% 31 Wizard Run 0 Options --------- Layout 1 ASCII 0 Keyboard 0 Movement Mouse Keybinds 0 Fullscreen 1 Font 24/Smallcaps Map View 50x35 Zoom Use 0% Tactical HUD 1 Map Filters NONE Filters NONE Steam 1 RUN: 5b81c896-4a58-49f3-8b26-2e6fd734bc81